bitfinex/quotes_SOLUSD_20240612
["timestamp","ask_amount","ask_price","bid_price","bid_amount"]
[1718200313355,0.17,159.12,159.07,2.3259]
[1718200313556,2.4953,159.12,159.08,2.3258]
[1718200313754,2.3254,159.11,159.06,2.326]
[1718200313987,2.3257,159.09,159.02,36.5401]
[1718200314155,2.3257,159.09,159.04,2.3263]
[1718200314353,0.34,159.1,159.05,2.3262]
[1718200314554,2.6656,159.1,159.05,2.3262]
[1718200314960,2.6656,159.1,159.04,2.3264]
[1718200314961,2.3258,159.09,159.04,2.3264]
[1718200315152,0.17,159.1,159.05,2.3262]
[1718200315350,2.3257,159.09,159.05,2.3262]
[1718200315591,2.4956,159.1,159.05,2.3262]
[1718200315882,2.4956,159.1,159.06,2.326]
[1718200315883,0.17,159.1,159.06,2.326]
[1718200316083,2.4954,159.11,159.06,2.326]
[1718200316283,0.51,159.12,159.04,9.3055]
[1718200316462,2.3254,159.11,159.07,2.3259]
[1718200316657,28.7648,159.16,159.06,4.6522]
[1718200316860,2.325,159.14,159.09,2.3256]
[1718200317481,6.1848,159.16,159.1,2.3254]
[1718200317482,2.3248,159.15,159.1,2.3254]
[1718200317685,2.325,159.14,159.09,2.3256]
[1718200318565,4.6483,159.2,159.1,4.6511]
[1718200318771,11.7633,159.22,159.11,4.6508]
[1718200318962,9.2959,159.21,159.08,15.4764]
[1718200319278,6.9723,159.2,159.08,10.8248]
[1718200319476,6.9729,159.19,159.1,2.3255]
[1718200319687,2.3247,159.16,159.1,2.3255]
[1718200319865,2.3247,159.16,159.11,2.3254]
[1718200320193,2.3246,159.17,159.12,2.3252]
[1718200320397,2.3243,159.19,159.09,6.9769]
[1718200320681,2.3242,159.2,159.11,20.5687]
[1718200320889,2.3242,159.19,159.14,2.3249]
[1718200321070,11.6201,159.21,159.12,2.3251]
[1718200321262,11.6201,159.21,159.11,15.9181]
[1718200321263,2.3243,159.19,159.13,2.3251]
[1718200322296,2.3241,159.2,159.15,2.3247]
[1718200322598,7.1156,159.22,159.14,2.3249]
[1718200322881,2.3242,159.19,159.14,2.3249]
[1718200323356,2.3242,159.19,159.13,2.325]
[1718200323559,2.3241,159.2,159.11,20.5687]
[1718200323785,2.3242,159.19,159.11,20.5687]
[1718200323988,2.3242,159.19,159.13,2.325]
[1718200324183,11.7634,159.22,159.13,2.325]
[1718200324480,11.7634,159.22,159.15,2.3247]
[1718200324682,2.3243,159.19,159.13,2.325]
[1718200324985,4.6484,159.2,159.11,15.9181]
[1718200325186,0.34,159.18,159.08,6.1734]
[1718200325482,0.17,159.18,159.12,2.3252]
[1718200325684,2.3245,159.17,159.12,2.3252]
[1718200325880,14.0873,159.22,159.08,17.8023]
[1718200325881,2.3242,159.2,159.11,4.6508]
[1718200326183,2.3244,159.18,159.12,2.3252]
[1718200326361,0.17,159.19,159.13,2.3251]
[1718200326562,2.4943,159.19,159.14,2.3249]
[1718200326968,2.4943,159.19,159.1,4.651]
[1718200327164,0.17,159.21,159.09,0.17]
[1718200327382,2.324,159.21,159.16,2.3246]
[1718200327769,9.4394,159.22,159.17,2.3245]
[1718200328091,0.555,159.25,159.11,22.75]
[1718200328398,0.555,159.25,159.12,14.2914]
[1718200329075,11.9576,159.24,159.15,2.3248]
[1718200329284,2.324,159.21,159.15,2.3248]
[1718200330078,2.3238,159.22,159.17,2.3245]
[1718200330277,2.3239,159.21,159.16,2.3246]
[1718200330586,2.3241,159.2,159.15,2.3248]
[1718200330798,100.0,159.24,159.09,9.3025]
[1718200330972,2.3246,159.17,159.08,17.8022]
[1718200331172,4.6484,159.2,159.11,2.3253]
[1718200331173,2.3247,159.16,159.11,2.3253]
[1718200331396,2.3246,159.17,159.08,10.8248]
[1718200331569,0.17,159.21,159.13,2.325]
[1718200331771,2.3243,159.19,159.14,2.3249]
[1718200332101,2.324,159.21,159.16,2.3246]
[1718200332686,2.3241,159.2,159.15,2.3248]
[1718200333088,2.3241,159.2,159.16,2.3246]
[1718200333291,2.324,159.21,159.16,2.3246]
[1718200333594,2.324,159.21,159.13,4.6501]
[1718200333595,7.5253,159.25,159.17,2.3244]
[1718200333778,2.3238,159.22,159.17,2.3244]
[1718200334177,2.3238,159.22,159.17,2.3245]
[1718200334374,2.3237,159.23,159.18,2.3243]
[1718200334783,2.3236,159.24,159.19,2.3242]
[1718200334987,8.6352,159.26,159.21,2.3239]
[1718200335178,2.8778,159.29,159.24,2.3235]
[1718200335379,0.555,159.29,159.21,6.9718]
[1718200335590,2.3228,159.29,159.24,2.3234]
[1718200335790,2.3227,159.3,159.25,2.3233]
[1718200335987,6.0637,159.31,159.24,2.3235]
[1718200336192,2.3228,159.29,159.24,2.3235]
[1718200336396,6.0637,159.31,159.25,2.3233]
[1718200336911,6.0637,159.31,159.19,22.58]
[1718200337073,2.3231,159.27,159.22,2.3237]
[1718200337273,2.3231,159.27,159.21,2.3239]
[1718200337578,0.17,159.28,159.16,10.9253]
[1718200337779,2.3236,159.23,159.18,2.3243]
[1718200338015,2.3239,159.22,159.16,8.6006]
[1718200338173,2.3239,159.22,159.16,2.3246]
[1718200338379,4.6471,159.24,159.15,2.3248]
[1718200338579,2.324,159.21,159.15,2.3248]
[1718200338887,2.3238,159.22,159.16,2.3246]
[1718200339091,2.6637,159.23,159.14,4.6499]
[1718200339394,2.6637,159.23,159.17,2.3244]
[1718200339802,0.17,159.23,159.14,9.2994]
[1718200340096,5.2008,159.29,159.18,4.6486]
[1718200340279,5.2008,159.29,159.12,6.0139]
[1718200340280,2.3234,159.25,159.19,2.3241]
[1718200340488,6.0637,159.31,159.19,6.9727]
[1718200340680,2.3229,159.28,159.23,2.3236]
[1718200340886,6.0637,159.31,159.26,2.3231]
[1718200341094,2.8772,159.33,159.23,9.2945]
[1718200341280,0.555,159.33,159.25,4.6467]
[1718200341481,2.8772,159.33,159.28,2.3228]
[1718200341682,0.555,159.33,159.27,2.323]
[1718200341886,2.8772,159.33,159.27,2.323]
[1718200342086,2.8773,159.33,159.27,2.323]
[1718200342303,2.3223,159.33,159.27,2.323]
[1718200342495,2.3223,159.32,159.27,2.323]
[1718200342809,6.5715,159.35,159.26,2.3231]
[1718200342810,2.3225,159.31,159.26,2.3231]
[1718200342997,2.3224,159.32,159.26,2.3231]
[1718200343193,6.5715,159.35,159.26,2.3231]
[1718200343194,2.3225,159.31,159.26,2.3231]
[1718200343607,2.3224,159.32,159.27,2.323]
[1718200344000,6.5715,159.35,159.26,2.3231]
[1718200344001,2.3225,159.31,159.26,2.3231]
[1718200345014,2.3225,159.31,159.23,11.6181]
[1718200345015,2.3224,159.32,159.27,2.323]
[1718200346590,2.3224,159.32,159.26,2.3231]
[1718200346923,2.3225,159.31,159.26,2.3231]
[1718200347092,2.3224,159.32,159.26,2.3231]
[1718200347418,2.3222,159.33,159.24,11.6174]
[1718200347613,0.34,159.34,159.26,2.3231]
[1718200347796,2.3226,159.31,159.26,2.3231]
[1718200348002,2.3223,159.32,159.27,2.323]
[1718200348595,2.3222,159.33,159.28,2.3229]
[1718200349294,6.5715,159.35,159.29,2.3227]
[1718200349491,2.3221,159.34,159.29,2.3227]
[1718200350094,6.5715,159.35,159.26,4.6463]
[1718200350095,2.3222,159.33,159.28,2.3228]
[1718200350412,2.3221,159.34,159.29,2.3227]
[1718200350597,0.555,159.37,159.33,2.3221]
[1718200350789,257.5450272,159.38,159.22,46.67]
[1718200350993,257.5450272,159.38,159.34,2.3219]
[1718200351797,259.8665272,159.38,159.3,9.2906]
[1718200352328,259.8665272,159.38,159.32,2.3222]
[1718200353519,2.3218,159.36,159.31,2.3224]
[1718200353819,257.5450272,159.38,159.3,2.3225]
[1718200353820,2.3219,159.35,159.3,2.3225]
[1718200354007,0.34,159.36,159.26,9.2929]
[1718200354214,0.51,159.37,159.25,15.0186]
[1718200354514,2.3216,159.37,159.32,2.3222]
[1718200354694,2.3218,159.36,159.25,15.0186]
[1718200354895,2.3217,159.36,159.31,2.3223]
[1718200355603,2.3217,159.37,159.32,2.3223]
[1718200356116,257.5450272,159.38,159.3,4.6452]
[1718200356325,259.8665272,159.38,159.33,2.3221]
[1718200356823,259.8665272,159.38,159.3,11.613]
[1718200356824,257.5450272,159.38,159.34,2.322]
[1718200357209,259.8664272,159.38,159.34,2.322]
[1718200357403,259.8664272,159.38,159.33,2.3221]
[1718200357628,2.3216,159.37,159.32,2.3223]
[1718200358138,257.5450272,159.38,159.31,4.645]
[1718200358298,257.5450272,159.38,159.32,4.6447]
[1718200358501,257.5450272,159.38,159.35,2.3219]
[1718200359107,257.5450272,159.38,159.34,2.322]
[1718200359330,257.5450272,159.38,159.35,2.3218]
[1718200359506,257.5450272,159.38,159.34,2.322]
[1718200359710,257.5450272,159.38,159.35,2.3218]
[1718200360121,2.876,159.41,159.36,2.3217]
[1718200360315,0.555,159.41,159.37,2.3215]
[1718200360611,6.3528,159.43,159.33,4.6442]
[1718200360920,6.3528,159.43,159.31,13.9346]
[1718200361109,4.6421,159.41,159.33,2.3221]
[1718200361311,6.9632,159.41,159.29,4.6455]
[1718200361517,2.3217,159.37,159.31,2.3224]
[1718200361906,2.3217,159.37,159.32,2.3223]
[1718200363104,2.3218,159.36,159.31,2.3224]
[1718200363316,0.17,159.39,159.3,4.6451]
[1718200363522,2.3216,159.37,159.29,6.9683]
[1718200363726,2.3218,159.36,159.31,2.3224]
[1718200364107,0.17,159.38,159.28,26.6688]
[1718200364306,2.3217,159.37,159.32,2.3223]
[1718200364916,2.3217,159.36,159.3,2.3225]
[1718200365123,6.2682,159.35,159.25,6.2289]
[1718200365436,2.3222,159.33,159.28,2.3229]
[1718200365733,8.5902,159.35,159.29,2.3226]
[1718200366117,8.5902,159.35,159.3,2.3226]
[1718200366926,6.2682,159.35,159.3,2.3225]
[1718200367125,6.0982,159.35,159.28,4.6458]
[1718200367329,2.3218,159.36,159.31,2.3224]
[1718200367535,2.3218,159.36,159.28,4.6458]
[1718200367536,0.51,159.37,159.29,2.3228]
[1718200367721,2.3222,159.33,159.28,2.3229]
[1718200368319,2.3221,159.34,159.29,2.3227]
[1718200368542,2.3219,159.35,159.26,4.6462]
[1718200368714,2.3219,159.35,159.29,2.3226]
[1718200369040,2.322,159.34,159.29,2.3226]
[1718200369217,2.322,159.35,159.29,2.3226]
[1718200369419,2.4918,159.36,159.28,4.6458]
[1718200369939,2.3219,159.35,159.3,2.3226]
[1718200371442,2.3221,159.34,159.29,2.3227]
[1718200372533,2.322,159.35,159.3,2.3226]
[1718200373211,2.3221,159.34,159.29,2.3227]
[1718200373914,2.3221,159.34,159.3,2.3226]
[1718200374907,0.34,159.35,159.24,15.7682]
[1718200374908,0.17,159.35,159.24,15.7682]
[1718200375114,0.34,159.36,159.24,15.7682]
[1718200375418,2.3221,159.34,159.24,15.7682]
[1718200375722,2.492,159.35,159.3,2.3225]
[1718200376054,2.322,159.34,159.29,2.3227]
[1718200376928,2.3222,159.33,159.28,2.3229]
[1718200377130,2.3221,159.34,159.26,4.6464]
[1718200377327,2.3222,159.33,159.28,2.3228]
[1718200377529,0.51,159.35,159.27,2.323]
[1718200377530,2.3224,159.32,159.27,2.323]
[1718200377736,2.3222,159.33,159.28,2.3229]
[1718200378545,2.3222,159.33,159.16,17.11894853]
[1718200378546,2.3228,159.29,159.2,27.0942]
[1718200378852,2.3228,159.29,159.24,2.3234]
[1718200379359,2.4928,159.3,159.25,2.3233]
[1718200379862,2.3228,159.3,159.25,2.3233]
[1718200381574,11.6108,159.34,159.23,9.2947]
[1718200381743,2.3224,159.32,159.26,2.3232]
[1718200382162,2.3224,159.32,159.27,2.323]
[1718200382344,2.6622,159.33,159.28,2.3229]
[1718200382543,2.6622,159.33,159.24,11.6175]
[1718200382544,0.34,159.33,159.24,4.647]
[1718200382744,2.3226,159.31,159.26,2.3232]
[1718200384072,2.3221,159.34,159.29,2.3227]
[1718200384364,2.322,159.34,159.29,2.3227]
[1718200384544,6.8977,159.35,159.25,4.6466]
[1718200384742,2.3224,159.32,159.27,2.3229]
[1718200384940,2.3222,159.33,159.28,2.3229]
[1718200386561,2.3224,159.32,159.27,2.323]
[1718200386866,2.3221,159.34,159.26,4.6464]
[1718200387054,9.2196,159.35,159.3,2.3225]
[1718200387257,9.2196,159.35,159.31,2.3225]
[1718200387463,9.2196,159.35,159.32,2.3223]
[1718200387464,6.8977,159.35,159.32,2.3223]
[1718200387783,2.3215,159.38,159.33,2.3221]
[1718200388465,6.1905,159.39,159.28,4.6457]
[1718200388466,2.3218,159.36,159.28,4.6457]
[1718200388871,2.3219,159.35,159.3,2.3225]
[1718200389068,4.6439,159.35,159.28,2.3229]
[1718200389247,4.6439,159.35,159.27,2.323]
[1718200389449,2.3223,159.33,159.28,2.3229]
[1718200390146,2.3221,159.34,159.29,2.3227]
[1718200390485,2.3221,159.34,159.28,2.3228]
[1718200390659,2.3222,159.33,159.28,2.3228]
[1718200390967,4.8143,159.34,159.23,15.6313]
[1718200391174,4.6454,159.3,159.19,15.5091]
[1718200391349,2.3232,159.26,159.19,15.5091]
[1718200391665,2.4934,159.25,159.2,2.3241]
[1718200391838,0.17,159.25,159.2,2.3241]
[1718200392040,2.4934,159.25,159.2,2.3241]
[1718200392346,2.4934,159.25,159.19,2.3242]
[1718200392545,0.555,159.25,159.15,47.0808]
[1718200392746,0.555,159.25,159.19,2.3242]
[1718200392747,2.8783,159.25,159.19,2.3242]
[1718200392943,2.8783,159.25,159.2,2.3241]
[1718200394070,2.8783,159.25,159.19,2.3242]
[1718200394576,0.555,159.25,159.21,2.3238]
[1718200395281,0.555,159.25,159.22,2.3238]
[1718200395778,2.323,159.28,159.22,2.3238]
[1718200396347,0.895,159.29,159.18,22.87]
[1718200396348,0.555,159.29,159.18,22.87]
[1718200396549,0.555,159.29,159.23,2.3235]
[1718200396759,2.8778,159.29,159.2,4.648]
[1718200396955,0.555,159.29,159.2,4.648]
[1718200397163,0.555,159.29,159.24,2.3235]
[1718200397672,2.8778,159.29,159.23,2.3236]
[1718200397867,2.8778,159.29,159.24,2.3235]
[1718200397868,0.555,159.29,159.24,2.3235]
[1718200398089,0.555,159.29,159.25,2.3233]
[1718200398971,0.555,159.29,159.24,2.3234]
[1718200399690,2.8778,159.29,159.24,2.3234]
[1718200399980,0.555,159.29,159.24,2.3234]
[1718200400193,0.555,159.29,159.25,2.3233]
[1718200401067,0.555,159.29,159.22,4.6475]
[1718200401068,8.8674,159.32,159.26,2.3232]
[1718200401252,0.17,159.31,159.26,2.3232]
[1718200401752,2.4925,159.31,159.26,2.3232]
[1718200402070,2.3225,159.31,159.25,2.3233]
[1718200402374,2.3226,159.3,159.25,2.3233]
[1718200402692,2.3226,159.3,159.24,2.3234]
[1718200403063,2.3226,159.3,159.25,2.3233]
[1718200403379,6.545,159.32,159.25,2.3233]
[1718200403380,2.3225,159.31,159.25,2.3233]
[1718200403753,6.545,159.32,159.21,16.2673]
[1718200403754,6.545,159.32,159.27,2.323]
[1718200403955,6.545,159.32,159.23,0.17]
[1718200404158,0.555,159.33,159.29,2.3227]
[1718200404970,6.3111,159.36,159.25,16.2635]
[1718200404971,6.3111,159.36,159.25,0.17]
[1718200405177,6.3111,159.36,159.31,2.3224]
[1718200405605,6.3111,159.36,159.32,2.3222]
[1718200405783,6.3111,159.36,159.31,2.3224]
[1718200406079,2.3222,159.33,159.25,14.4496]
[1718200406374,2.3225,159.31,159.25,2.3233]
[1718200407386,2.3226,159.31,159.25,2.3233]
[1718200407886,0.17,159.33,159.25,2.3233]
[1718200407887,2.3227,159.3,159.25,2.3233]
[1718200408265,2.3225,159.31,159.25,2.3233]
[1718200408484,2.3225,159.31,159.26,2.3232]
[1718200409267,2.4924,159.32,159.27,2.323]
[1718200409467,0.17,159.32,159.27,2.323]
[1718200410381,0.17,159.32,159.28,2.3229]
[1718200410575,2.4923,159.33,159.27,2.323]
[1718200410995,2.662,159.34,159.26,4.6464]
[1718200411184,2.492,159.35,159.29,2.3227]
[1718200411391,0.17,159.35,159.28,2.3229]
[1718200411689,2.3222,159.33,159.27,2.323]
[1718200411884,2.3221,159.34,159.28,2.3229]
[1718200413582,2.3222,159.33,159.28,2.3229]
[1718200414005,2.3222,159.33,159.27,2.323]
[1718200414693,2.3222,159.33,159.28,2.3229]
[1718200414996,2.3223,159.32,159.27,2.323]
[1718200415198,2.3225,159.31,159.23,4.6472]
[1718200415395,2.3227,159.3,159.24,2.3234]
[1718200415575,2.3225,159.31,159.25,2.3233]
[1718200415778,2.3225,159.31,159.26,2.3232]
[1718200416670,4.8148,159.32,159.22,15.283]
[1718200416907,2.3228,159.29,159.23,2.3235]
[1718200417323,2.3228,159.29,159.24,2.3235]
[1718200417609,2.3227,159.3,159.24,2.3235]
[1718200418000,2.3227,159.3,159.25,2.3233]
[1718200418194,2.4925,159.31,159.25,2.3233]
[1718200418704,2.4925,159.31,159.26,2.3232]
[1718200418905,2.4925,159.31,159.25,2.3233]
[1718200419110,2.3228,159.29,159.24,2.3234]
[1718200419314,2.3228,159.29,159.21,11.6195]
[1718200419315,2.3228,159.29,159.23,2.3236]
[1718200419485,2.3228,159.29,159.21,11.6195]
[1718200419486,2.8777,159.3,159.24,2.3234]
[1718200419805,6.7463,159.29,159.22,2.3237]
[1718200419993,2.833,159.28,159.22,2.3237]
[1718200420307,2.3231,159.27,159.22,2.3237]
[1718200420809,2.3231,159.27,159.21,2.3239]
[1718200421516,2.3231,159.27,159.19,4.6484]
[1718200422009,2.3234,159.25,159.2,2.324]
[1718200422318,2.4936,159.24,159.15,9.2988]
[1718200422503,0.34,159.23,159.18,2.3243]
[1718200422704,0.34,159.26,159.2,2.3241]
[1718200422893,0.17,159.25,159.15,9.2988]
[1718200423096,2.3235,159.24,159.18,2.3243]
[1718200423408,2.8782,159.26,159.21,2.3238]
[1718200423603,0.555,159.26,159.17,6.9735]
[1718200423911,2.3236,159.24,159.18,2.3243]
[1718200424722,0.51,159.25,159.18,4.6487]
[1718200425015,0.17,159.25,159.21,2.3239]
[1718200426706,0.17,159.25,159.2,2.324]
[1718200427016,2.4933,159.25,159.2,2.324]
[1718200427311,2.4933,159.25,159.18,4.6487]
[1718200427312,0.555,159.26,159.22,2.3236]
[1718200427704,0.555,159.26,159.18,9.2972]
[1718200427906,0.555,159.26,159.25,2.3233]
[1718200428117,0.555,159.26,159.24,2.3234]
[1718200428295,0.555,159.26,159.23,2.3236]
[1718200428704,0.555,159.26,159.21,2.3239]
[1718200429816,0.555,159.26,159.17,44.8918]
[1718200429817,0.555,159.26,159.23,2.3236]
[1718200430190,0.555,159.26,159.22,2.3237]
[1718200430725,2.8783,159.26,159.18,4.6487]
[1718200431012,0.555,159.26,159.17,22.7]
[1718200431214,0.51,159.25,159.19,2.3242]
[1718200431421,2.8335,159.25,159.19,2.3241]
[1718200431733,2.8335,159.25,159.2,2.3241]
[1718200432020,2.8335,159.25,159.19,2.3241]
[1718200432723,2.8334,159.25,159.2,2.324]
[1718200433415,2.8334,159.25,159.17,4.649]
[1718200433416,0.555,159.26,159.21,2.3238]
[1718200433924,2.8782,159.26,159.21,2.3238]
[1718200434097,2.8782,159.26,159.2,2.324]
[1718200434297,2.3234,159.25,159.18,4.6488]
[1718200434504,2.3234,159.25,159.2,2.324]
[1718200436191,0.895,159.26,159.21,2.3238]
[1718200436418,3.0482,159.26,159.21,2.3238]
[1718200436595,0.725,159.26,159.21,2.3238]
[1718200437817,0.555,159.26,159.22,2.3237]
[1718200439394,0.555,159.26,159.23,2.3236]
[1718200439713,0.555,159.26,159.18,13.9462]
[1718200439919,0.555,159.26,159.21,2.3238]
[1718200440220,0.555,159.26,159.23,2.3236]
[1718200440420,8.8991,159.29,159.18,22.87]
[1718200440421,6.5763,159.29,159.18,22.87]
[1718200440596,0.555,159.3,159.23,4.6473]
[1718200440795,0.555,159.3,159.21,2.3239]
[1718200441011,2.3233,159.26,159.21,2.3238]
[1718200441223,2.3234,159.25,159.17,4.649]
[1718200441402,9.2914,159.29,159.17,4.649]
[1718200441403,2.3233,159.26,159.18,4.6487]
[1718200441597,0.555,159.3,159.19,4.6483]
[1718200441798,2.3231,159.27,159.21,2.3238]
[1718200442012,2.3229,159.28,159.23,2.3236]
[1718200442422,2.3229,159.28,159.22,2.3237]
[1718200442623,2.3229,159.28,159.2,4.6482]
[1718200442917,0.34,159.29,159.21,2.3239]
[1718200442918,2.3232,159.26,159.21,2.3239]
[1718200444428,0.51,159.29,159.21,2.3239]
[1718200444429,2.3231,159.27,159.21,2.3239]
[1718200445507,2.3231,159.27,159.19,4.6485]
[1718200445823,2.3232,159.26,159.2,2.324]
[1718200446027,2.3236,159.24,159.19,2.3242]
[1718200446324,2.3236,159.24,159.16,32.9321]
[1718200446325,0.51,159.25,159.16,4.6493]
[1718200446499,2.8334,159.25,159.17,4.649]
[1718200446700,2.8334,159.25,159.2,2.324]
[1718200447817,0.51,159.25,159.16,9.2987]
[1718200448429,2.8334,159.25,159.2,2.324]
[1718200448735,2.8334,159.25,159.19,2.3241]
[1718200448934,0.17,159.24,159.17,2.3244]
[1718200449110,9.9039,159.22,159.17,2.3245]
[1718200449314,9.9039,159.22,159.16,7.58]
[1718200449315,0.895,159.23,159.12,15.0779]
[1718200449513,9.9041,159.2,159.14,9.9049]
[1718200449728,2.3242,159.19,159.14,9.9049]
[1718200449934,7.58,159.19,159.14,9.9049]
[1718200450649,2.3246,159.17,159.09,15.7425]
[1718200450932,2.3246,159.17,159.11,2.3252]
[1718200451514,0.17,159.18,159.11,2.3252]
[1718200451515,2.8797,159.16,159.11,2.3252]
[1718200451911,6.0239,159.19,159.05,39.1189]
[1718200451912,6.0239,159.19,159.05,44.19386072]
[1718200452124,6.0239,159.19,159.15,2.3247]
[1718200452436,0.34,159.18,159.11,4.6508]
[1718200452618,0.17,159.18,159.11,4.6508]
[1718200453312,0.17,159.18,159.14,2.3249]
[1718200453617,8.3481,159.19,159.14,2.3249]
[1718200453826,6.1939,159.19,159.11,2.3253]
[1718200454012,0.68,159.18,159.13,2.325]
[1718200454204,3.0044,159.18,159.12,2.3252]
[1718200454418,2.3245,159.17,159.11,2.3253]
[1718200454620,3.0044,159.18,159.12,2.3251]
[1718200454926,3.0044,159.18,159.13,2.3251]
[1718200455130,0.68,159.18,159.13,2.3251]
[1718200455317,0.68,159.18,159.1,4.6509]
[1718200455318,0.34,159.18,159.1,4.6509]
[1718200455650,0.555,159.2,159.16,2.3245]
[1718200455822,0.555,159.2,159.17,2.3245]
[1718200456231,6.578,159.23,159.19,2.3241]
[1718200456530,6.578,159.23,159.2,2.3241]
[1718200456738,0.555,159.25,159.18,11.622]
[1718200457045,0.555,159.25,159.18,20.9189]
[1718200457345,0.555,159.25,159.21,2.3238]
[1718200457523,0.555,159.25,159.22,2.3238]
[1718200457724,0.555,159.25,159.21,2.3239]
[1718200458626,0.555,159.25,159.2,2.3241]
[1718200458840,0.555,159.25,159.16,4.6493]
[1718200459036,2.6635,159.24,159.18,2.3243]
[1718200459422,2.3236,159.23,159.18,2.3243]
[1718200459622,2.3236,159.23,159.17,2.3244]
[1718200460531,2.6636,159.24,159.18,2.3243]
[1718200461429,0.34,159.24,159.19,2.3242]
[1718200461641,0.17,159.23,159.14,13.9495]
[1718200461997,0.34,159.23,159.18,2.3244]
[1718200462191,0.17,159.22,159.18,2.3244]
[1718200463460,2.4938,159.22,159.17,2.3244]
[1718200463661,0.17,159.22,159.17,2.3244]
[1718200463995,0.17,159.22,159.12,28.9513]
[1718200463996,6.2545,159.21,159.12,27.4003]
[1718200464194,2.3243,159.19,159.14,2.3248]
[1718200464490,2.6641,159.2,159.14,2.3249]
[1718200464658,2.6641,159.2,159.15,2.3248]
[1718200464851,2.3243,159.19,159.14,2.3249]
[1718200465066,0.34,159.2,159.11,4.6507]
[1718200465251,2.3244,159.18,159.1,15.0839]
[1718200465553,2.3244,159.18,159.12,2.3251]
[1718200466147,2.3244,159.18,159.13,2.3251]
[1718200467969,2.3243,159.19,159.14,2.3249]
[1718200468277,2.6644,159.18,159.13,2.325]
[1718200468474,2.4944,159.18,159.13,2.325]
[1718200468647,0.17,159.18,159.14,2.3249]
[1718200468852,0.34,159.18,159.14,2.3249]
[1718200469878,0.17,159.18,159.14,2.3249]
[1718200470077,2.8795,159.18,159.09,4.6512]
[1718200470370,2.3248,159.15,159.08,9.3032]
[1718200470573,2.3248,159.15,159.1,2.3255]
[1718200471861,0.17,159.14,159.05,43.6858]
[1718200472082,2.3252,159.13,159.08,2.3258]
[1718200472584,0.17,159.15,159.1,2.3254]
[1718200472585,2.4949,159.15,159.1,2.3254]
[1718200473994,0.34,159.14,159.07,4.652]
[1718200474193,0.17,159.11,159.02,29.7301]
[1718200474364,2.3256,159.1,159.05,2.3262]
[1718200474562,2.3256,159.1,159.06,2.3261]
[1718200475064,6.3648,159.09,159.0,2.327]
[1718200475263,0.17,159.07,158.97,4.6549]
[1718200475591,0.17,159.07,158.95,23.0575]
[1718200475592,2.3264,159.04,158.95,27.7129]
[1718200475790,2.3264,159.04,158.99,2.3271]
[1718200475964,2.8813,159.05,159.0,2.327]
[1718200476285,0.34,159.04,159.0,2.327]
[1718200476497,0.555,159.05,159.0,2.327]
[1718200476989,0.555,159.05,158.96,11.6378]
[1718200476990,0.555,159.05,159.01,2.3268]
[1718200477188,0.555,159.05,158.97,4.6548]
[1718200477189,0.555,159.05,159.0,2.3269]
[1718200477370,0.555,159.05,159.01,2.3268]
[1718200478598,0.17,159.07,159.0,2.3269]